Workbook

Sheet январь
D4: показание спидометра на | G4: 2014-01-01 | H4: 22458
D5: остаток топлива на | H5: 17.74
B6: дата | C6: ост на начало | D6: заправка литры | E6: №п/л | F6: пробег, км | G6: норма | H6: расход литры | I6: остаток | J6: показание спидометра
B7: 2015-01-12 | C7: =H5 -> 17.74 | D7: 20 | E7: 1 | F7: 154 | G7: 10 | H7: =G7/100*F7 -> 15.4 | I7: =C7+D7-H7 -> 22.34 | J7: =H4+F7 -> 22612
B8: 2015-01-14 | C8: =I7 -> 22.34 | E8: =E7+1 -> 2 | F8: 131 | G8: 10 | H8: =G8/100*F8 -> 13.1 | I8: =C8+D8-H8 -> 9.24 | J8: =J7+F8 -> 22743
B9: 2015-01-15 | C9: =I8 -> 9.24 | D9: 30 | E9: =E8+1 -> 3 | F9: 239 | G9: 10 | H9: 23.9 | I9: 15.34 | J9: =J8+F9 -> 22982
B10: 2015-01-19 | C10: 15.34 | E10: 4 | F10: 97 | G10: 10 | H10: 9.7 | I10: 5.64 | J10: 23079
B11: 2015-01-20 | C11: 5.64 | D11: 30 | E11: 5 | F11: 167 | G11: 10 | H11: 16.7 | I11: 18.94 | J11: 23246
B12: 2015-01-23 | C12: 18.94 | D12: 30 | E12: 6 | F12: 204 | G12: 10 | H12: 20.4 | I12: 28.54 | J12: 23450
B13: 2015-01-25 | C13: =I12 -> 28.54 | E13: =E12+1 -> 7 | F13: 185 | G13: 10 | H13: 18.5 | I13: 10.04 | J13: =J12+F13 -> 23635
B14: 2015-01-27 | C14: 10.04 | D14: 60 | E14: 8 | F14: 314 | G14: 10 | H14: 31.4 | I14: 38.64 | J14: 23949
B15: 2015-01-28 | C15: 38.64 | D15: 20 | E15: 9 | F15: 379 | G15: 10 | H15: 37.9 | I15: 20.74 | J15: 24328
B16: 2015-01-30 | C16: 20.74 | D16: 40 | E16: 10 | F16: 257 | G16: 10 | H16: 25.7 | I16: 35.04 | J16: 24585
C17: 35.04 | E17: 11 | G17: 10 | H17: 0 | I17: 35.04 | J17: 24585
C18: 35.04 | E18: 12 | G18: 10 | H18: 0 | I18: 35.04 | J18: 24585
C19: 35.04 | E19: 13 | G19: 10 | H19: 0 | I19: 35.04 | J19: 24585
C20: 35.04 | E20: 14 | G20: 10 | H20: 0 | I20: 35.04 | J20: 24585
C21: 35.04 | E21: 15 | G21: 10 | H21: 0 | I21: 35.04 | J21: 24585
C22: 35.04 | G22: 10 | H22: 0 | I22: 35.04 | J22: 24585
C23: 35.04 | G23: 10 | H23: 0 | I23: 35.04 | J23: 24585
C24: 35.04 | D24: =SUM(D7:D23) -> 230 | F24: =SUM(F7:F23) -> 2127 | H24: =SUM(H7:H23) -> 212.7 | I24: =C24+D24-H24 -> 52.34 | J24: 26712

Sheet Лист2
A1: 9
B2: место для штампа организации
B4: путевой лист легкового автомобиля № | R4: № | S4: 3
O5: (серия)
E6: 2015-01-15 | W6: коды
Q7: форма по ОКУД
A8: Организация | S8: по ОКПО
F9: (наименование,адрес,номер телефона.)
A10: марка автомобиля
A11: Государственный номерной знак | S11: гаражный номер
A12: Водитель | S12: табельный номер
G13: (Фамилия,имя,отчество)
A14: Удостоверение № | T14: Класс
A15: Лицензионная карточка | I15: стандартная,ограниченная
I16: (ненужное зачеркнуть)
A17: Регистрационный № | M17: серия | S17: №
C19: задание водителю | N19: Автомобиль технически исправен
P21: показания спидометра,км. | W21: 22743
A22: В распоряжение | X22: штамп
H23: наименование | Q23: Выезд разрешил
Q24: механик
B25: организации | V25: (подпись) (расшифровка подписи)
T26: автомобиль в технически исправном состоянии принял
A28: Адрес подачи | Q28: Водитель
V29: (подпись) (расшифровка подписи)
Q30: Горючее
V31: марка | Z31: код
A32: время выезда из гаража,ч.мин
S33: Движение горючего
A35: Диспетче-нарядчик
G36: (подпись) | K36: (расшифровка) | Y36: количество,л
A38: время возвращения в гараж. ч.мин | R38: Выдать по заправочному | Y38: 30
A41: Диспетче-нарядчик | R41: листу№
G42: (подпись) | K42: (расшифровка) | R42: остаток при выезде | Y42: 9.24
T44: при возвращении | Y44: 15.34
Q46: расход | U46: по норме
A47: Опоздания ,ожидания,простои в пути,заезды в гараж и прочие отметки | U47: фактически
R48: Экономия
R49: Перерасход
S52: Автомобиль принял. Показания спидометра при возвращении в гараж,км
A54: Предрейсовый медосмотр прошел,к рейсу допущен | Y54: 22982
V55: штамп
K56: штамп | Q56: механик
A57: Мед.работник | V57: (подпись) (расшифровка подписи)
E59: (подпись) | K59: (расщифровка)
